Workbook

Sheet TCC-4.1
A1: Month | B1: Total Nominal | C1: Base Nominal | D1: Base Real | E1: Total Real | F1: CPI | K1: OPC 006642 | Z1: 2006 RS-1 Bill Calculation for Usage: 1000 kWh
A2: 2006-01-01 | B2: 108.61 | C2: 38.12 | D2: =C2 -> 38.12 | E2: =B2 -> 108.61 | F2: 198.3 | K2: FPL RC-16 | Z2: Description | AA2: Each | AB2: Quantity | AC2: Total
A3: 2007-01-05 | B3: 103.51 | C3: 38.12 | D3: =ROUND((($F3/$F$2)*$C$2),2) -> 38.91 | E3: =ROUND((($F3/$F$2)*$B$2),2) -> 110.86 | F3: 202.416 | H3: Category | I3: 2006-01-01 | J3: 2016-01-01 | Z3: customer charge | AA3: 5.17 | AB3: 1 | AC3: =ROUND(AA3*AB3,2) -> 5.17
A4: 2008-01-07 | B4: 102.49 | C4: 39.37 | D4: =ROUND((($F4/$F$2)*$C$2),2) -> 40.58 | E4: =ROUND((($F4/$F$2)*$B$2),2) -> 115.61 | F4: 211.08 | H4: Nominal Base | I4: =C2 -> 38.12 | J4: =C13 -> 54.86 | Z4: Eenergy first 1,000 kWh | AA4: 0.03295 | AB4: 1000 | AC4: =ROUND(AA4*AB4,2) -> 32.95
A5: 2009-01-06 | B5: 109.55 | C5: 39.31 | D5: 40.59 | E5: 115.64 | F5: 211.143 | H5: Real Base | I5: =D13-D2 -> 8.15 | J5: 0 | Z5: storm | AA5: =0.165/100 -> 0.00165 | AB5: 1000 | AC5: 1.65
A6: 2010-02-03 | B6: 95.43 | C6: 42 | D6: 41.65 | E6: 118.68 | F6: 216.687 | H6: Nomontal Total | I6: =B2 -> 108.61 | J6: =B13 -> 93.38 | Z6: fuel First 1,000 kWh | AA6: 0.05841 | AB6: 1000 | AC6: 58.41
A7: 2011-03-01 | B7: 96.44 | C7: 43.03 | D7: 42.96 | E7: 122.39 | F7: 223.467 | H7: Real Total | I7: =E13-E2 -> 23.22 | J7: 0 | Z7: conservation | AA7: =0.142/100 -> 0.00142 | AB7: 1000 | AC7: 1.42
A8: 2012-01-03 | B8: 94.62 | C8: 43.26 | D8: 43.57 | E8: 124.15 | F8: 226.665 | J8: Nominal | K8: Real | Z8: capacity | AA8: =0.603/100 -> 0.00603 | AB8: 1000 | AC8: 6.03
A9: 2013-01-02 | B9: 94.25 | C9: 49.61 | D9: 44.27 | E9: 126.13 | F9: 230.28 | H9: Base Part of Bill | I9: 2006-01-01 | J9: =I4 -> 38.12 | K9: =I5 -> 8.15 | Z9: environmental | AA9: =0.026/100 -> 0.00026 | AB9: 1000 | AC9: 0.26
A10: 2014-01-02 | B10: 99.95 | C10: 52.47 | D10: 44.97 | E10: 128.12 | F10: 233.916 | I10: 2016-01-01 | J10: =J4 -> 54.86 | Z10: subtotal | AC10: =SUM(AC3:AC9) -> 105.89
A11: 2015-01-01 | B11: 99.57 | C11: 54.86 | D11: 44.93 | E11: 128 | F11: 233.707 | J11: Nominal | K11: Real | Z11: GRT | AC11: =ROUND(AC10*0.025641,2) -> 2.72
A12: 2015-11-01 | B12: 96.72 | C12: 54.86 | D12: 45.37 | E12: 129.26 | F12: 236 | H12: Total Bill | I12: 2006-01-01 | J12: =I6 -> 108.61 | K12: =I7 -> 23.22 | Z12: Total | AC12: =SUM(AC10:AC11) -> 108.61
A13: 2016-01-01 | B13: 93.38 | C13: 54.86 | D13: 46.27 | E13: 131.83 | F13: 240.7 | I13: 2016-01-01 | J13: =J6 -> 93.38
A14: 2017-01-01 | B14: 98.82 | C14: 64.83 | D14: 47.42 | E14: 135.12 | F14: 246.7 | I14: 2017-01-01 | J14: 98.82
A15: 2018-01-01 | B15: 104.18 | C15: 67.38 | D15: 48.65 | E15: 138.62 | F15: 253.1 | I15: 2018-01-01 | J15: 104.18
A16: 2019-04-01 | B16: 105.2 | C16: 69.55 | D16: 49.88 | E16: 142.13 | F16: 259.5 | I16: 2019-04-01 | J16: 105.2
A17: 2020-01-01 | B17: 106.11 | C17: 69.55 | D17: 51.33 | E17: 146.24 | F17: 267 | I17: 2020-01-01 | J17: 106.11
A20: Nominal Total Bill CAGR: | D20: =(B17/B2)^(1/14)-1 -> -0.001661988252 | F20: take out base | I20: =F13/F2 -> 1.213817448 | J20: =(B2-B13)/B2 -> 0.1402264985
A21: Nominal Base Bill CAGR: | D21: =(C17/C2)^(1/14)-1 -> 0.04388620924 | I21: =C13/C2 -> 1.439139559
A22: CPI CAGR: | D22: =(F17/F2)^(1/14)-1 -> 0.02147502675

Sheet TCC4.2
H1: OPC 006643 | Q1: 2006 | R1: GS-1 Bill Calculation
A2: Month | B2: Total Nominal | C2: Base Nominal | D2: Base Real | E2: Total Real | F2: CPI | H2: FPL RC-16 | J2: 2016 | K2: 1200 | L2: KWH | Q2: 1200 | R2: KWH
A3: 2006-01-01 | B3: =T14 -> 142.27 | C3: =T5+T6 -> 53.86 | D3: =C3 -> 53.86 | E3: =B3 -> 142.27 | F3: 198.3 | K3: 3 | L3: KW
A4: 2016-01-01 | B4: =N14 -> 119.31 | C4: =N5+N6 -> 69.64 | D4: =ROUND((($F4/$F$3)*$C$3),2) -> 65.38 | E4: =ROUND((($F4/$F$3)*$B$3),2) -> 172.69 | F4: 240.7
K5: Customer Charge | L5: 7.46 | N5: =L5 -> 7.46 | Q5: Customer Charge | R5: 8.24 | T5: =R5 -> 8.24
K6: Non-fuel Energy | L6: 5.182 | M6: ¢/kWh | N6: =ROUND(K2*(L6/100),2) -> 62.18 | Q6: Non-fuel Energy | R6: 3.802 | S6: ¢/kWh | T6: =ROUND(Q2*(R6/100),2) -> 45.62
K7: ECCR | L7: 0.177 | M7: ¢/kWh | N7: =ROUND(K2*(L7/100),2) -> 2.12 | Q7: ECCR | R7: 0.137 | S7: ¢/kWh | T7: =ROUND(Q2*(R7/100),2) -> 1.64
H8: =(B3-B4)/B3 -> 0.1613832853 | K8: ECRC | L8: 0.251 | M8: ¢/kWh | N8: =ROUND(K2*(L8/100),2) -> 3.01 | Q8: ECRC | R8: 0.025 | S8: ¢/kWh | T8: =ROUND(Q2*(R8/100),2) -> 0.3
E9: Nominal | F9: Real | K9: CPRC | L9: 0.466 | M9: ¢/kWh | N9: =ROUND(K2*(L9/100),2) -> 5.59 | Q9: CPRC | R9: 0.573 | S9: ¢/kWh | T9: =ROUND(Q2*(R9/100),2) -> 6.88
D10: 2006-01-01 | E10: =B3 -> 142.27 | F10: =E4-E3 -> 30.42 | K10: Fuel | L10: 2.907 | M10: ¢/kWh | N10: =ROUND(K2*(L10/100),2) -> 34.88 | Q10: Fuel | R10: 6.191 | S10: ¢/kWh | T10: =ROUND(Q2*(R10/100),2) -> 74.29
C11: Total Bill | D11: 2016-01-01 | E11: =B4 -> 119.31 | K11: Storm Surcharge | L11: 0.091 | M11: ¢/kWh | N11: =ROUND(K2*(L11/100),2) -> 1.09 | Q11: Storm Surcharge | R11: 0.145 | S11: ¢/kWh | T11: =ROUND(Q2*(R11/100),2) -> 1.74
K12: Subtotal | N12: =SUM(N4:N11) -> 116.33 | Q12: Subtotal | T12: =SUM(T4:T11) -> 138.71
K13: Gross Tax Receipts | L13: 2.5641 | M13: % | N13: =ROUND(N12*(L13/100),2) -> 2.98 | Q13: Gross Tax Receipts | R13: 2.5641 | S13: % | T13: =ROUND(T12*(R13/100),2) -> 3.56
K14: Total | N14: =SUM(N12:N13) -> 119.31 | Q14: Total | T14: =SUM(T12:T13) -> 142.27

Sheet TCC4.3
L1: OPC 006644 | O1: 2006 GSD-1 Bill Calculation
A2: Month | B2: Total Nominal | C2: Base Nominal | D2: Base Real | E2: Total Real | F2: CPI | H2: 2016 | I2: 17520 | J2: KWH | L2: FPL RC-16 | O2: 17520 | P2: KWH
A3: 2006-01-01 | B3: =R15 -> 1790.88 | C3: =R5+R6+R7 -> 515.22 | D3: =C3 -> 515.22 | E3: =B3 -> 1790.88 | F3: 198.3 | I3: 50 | J3: KW | O3: 50 | P3: KW
A4: 2016-01-01 | B4: =L15 -> 1448.77 | C4: =L5+L6+L7 -> 743.03 | D4: =ROUND((($F4/$F$3)*$C$3),2) -> 625.38 | E4: =ROUND((($F4/$F$3)*$B$3),2) -> 2173.8 | F4: 240.7
I5: Customer Charge | J5: 19.48 | L5: =J5 -> 19.48 | O5: Customer Charge | P5: 32.05 | R5: =P5 -> 32.05
I6: Non-fuel Energy | J6: 1.861 | K6: ¢/kWh | L6: =ROUND(I2*(J6/100),2) -> 326.05 | O6: Non-fuel Energy | P6: 1.348 | Q6: ¢/kWh | R6: =ROUND(O2*(P6/100),2) -> 236.17
G7: =C4/C3 -> 1.44216063 | I7: Demand Charge | J7: 7.95 | K7: $/kW | L7: =ROUND((J7*(I3)),2) -> 397.5 | O7: Demand Charge | P7: 4.94 | Q7: $/kW | R7: =ROUND((P7*(O3)),2) -> 247
G8: =(B3-B4)/B3 -> 0.1910289913 | I8: ECCR | J8: 0.61 | K8: $/kW | L8: =ROUND(I3*(J8),2) -> 30.5 | O8: ECCR | P8: 0.129 | Q8: ¢/kWh | R8: =ROUND(O2*(P8)/100,2) -> 22.6
E9: Nominal | F9: Real | I9: ECRC | J9: 0.233 | K9: ¢/kWh | L9: =ROUND(I2*(J9/100),2) -> 40.82 | O9: ECRC | P9: 0.024 | Q9: ¢/kWh | R9: =ROUND(O2*(P9/100),2) -> 4.2
C10: Total Bill | D10: 2006-01-01 | E10: =B3 -> 1790.88 | F10: =E4-E3 -> 382.92 | I10: CPRC | J10: 1.55 | K10: $/kW | L10: =ROUND((J10*(I3)),2) -> 77.5 | O10: CPRC | P10: 1.94 | Q10: $/kW | R10: =ROUND((P10*(O3)),2) -> 97
D11: 2016-01-01 | E11: =B4 -> 1448.77 | I11: Fuel | J11: 2.907 | K11: ¢/kWh | L11: =ROUND(I2*(J11/100),2) -> 509.31 | O11: Fuel | P11: 6.191 | Q11: ¢/kWh | R11: =ROUND(O2*(P11/100),2) -> 1084.66
I12: Storm Surcharge | J12: 0.065 | K12: ¢/kWh | L12: =ROUND(I2*(J12/100),2) -> 11.39 | O12: Storm Surcharge | P12: 0.128 | Q12: ¢/kWh | R12: =ROUND(O2*(P12/100),2) -> 22.43
I13: Subtotal | L13: =SUM(L5:L12) -> 1412.55 | O13: Subtotal | R13: =SUM(R5:R12) -> 1746.11
I14: Gross Tax Receipts | J14: 2.5641 | K14: % | L14: =ROUND(L13*(J14/100),2) -> 36.22 | O14: Gross Tax Receipts | P14: 2.5641 | Q14: % | R14: =ROUND(R13*(P14/100),2) -> 44.77
I15: Total | L15: =SUM(L13:L14) -> 1448.77 | O15: Total | R15: =SUM(R13:R14) -> 1790.88

Sheet TCC4.4
L1: OPC 006645 | O1: 2006 | P1: GSLD-1 Bill Calculation
A2: Month | B2: Total Nominal | C2: Base Nominal | D2: Base Real | E2: Total Real | F2: CPI | H2: 2016 | I2: 219000 | J2: KWH | L2: FPL RC-16 | O2: 219000 | P2: KWH
A3: 2006-01-01 | B3: =R15 -> 21848.76 | C3: =R5+R6+R7 -> 5806.28 | D3: =C3 -> 5806.28 | E3: =B3 -> 21848.76 | F3: 198.3 | I3: 600 | J3: KW | O3: 600 | P3: KW
A4: 2016-01-01 | B4: =L15 -> 17454.94 | C4: =L5+L6+L7 -> 8538.95 | D4: =ROUND((($F4/$F$3)*$C$3),2) -> 7047.76 | E4: =ROUND((($F4/$F$3)*$B$3),2) -> 26520.41 | F4: 240.7
I5: Customer Charge | J5: 59.51 | L5: =J5 -> 59.51 | O5: Customer Charge | P5: 37.55 | R5: =P5 -> 37.55
I6: Non-fuel Energy | J6: 1.376 | K6: ¢/kWh | L6: =ROUND(I2*(J6/100),2) -> 3013.44 | O6: Non-fuel Energy | P6: 1.067 | Q6: ¢/kWh | R6: =ROUND(O2*(P6/100),2) -> 2336.73
I7: Demand Charge | J7: 9.11 | K7: $/kW | L7: =ROUND((J7*(I3)),2) -> 5466 | O7: Demand Charge | P7: 5.72 | Q7: $/kW | R7: =ROUND((P7*(O3)),2) -> 3432
G8: =C4/C3 -> 1.47064041 | I8: ECCR | J8: 0.68 | K8: $/kW | L8: =ROUND(I3*(J8),2) -> 408 | O8: ECCR | P8: 0.122 | Q8: ¢/kWh | R8: =ROUND(O2*(P8)/100,2) -> 267.18
E9: Nominal | F9: Real | G9: =(B3-B4)/B3 -> 0.2011015728 | I9: ECRC | J9: 0.232 | K9: ¢/kWh | L9: =ROUND(I2*(J9/100),2) -> 508.08 | O9: ECRC | P9: 0.024 | Q9: ¢/kWh | R9: =ROUND(O2*(P9/100),2) -> 52.56
C10: Total Bill | D10: 2006-01-01 | E10: =B3 -> 21848.76 | F10: =E4-E3 -> 4671.65 | I10: CPRC | J10: 1.78 | K10: $/kW | L10: =ROUND((J10*(I3)),2) -> 1068 | O10: CPRC | P10: 2.27 | Q10: $/kW | R10: =ROUND((P10*(O3)),2) -> 1362
D11: 2016-01-01 | E11: =B4 -> 17454.94 | I11: Fuel | J11: 2.904 | K11: ¢/kWh | L11: =ROUND(I2*(J11/100),2) -> 6359.76 | O11: Fuel | P11: 6.185 | Q11: ¢/kWh | R11: =ROUND(O2*(P11/100),2) -> 13545.15
I12: Storm Surcharge | J12: 0.062 | K12: ¢/kWh | L12: =ROUND(I2*(J12/100),2) -> 135.78 | O12: Storm Surcharge | P12: 0.123 | Q12: ¢/kWh | R12: =ROUND(O2*(P12/100),2) -> 269.37
I13: Subtotal | L13: =SUM(L5:L12) -> 17018.57 | O13: Subtotal | R13: =SUM(R5:R12) -> 21302.54
I14: Gross Tax Receipts | J14: 2.5641 | K14: % | L14: =ROUND(L13*(J14/100),2) -> 436.37 | O14: Gross Tax Receipts | P14: 2.5641 | Q14: % | R14: =ROUND(R13*(P14/100),2) -> 546.22
I15: Total | L15: =SUM(L13:L14) -> 17454.94 | O15: Total | R15: =SUM(R13:R14) -> 21848.76

Sheet TCC4.5
L1: OPC 006646 | O1: 2006 GSLD-2 Bill Calculation
A2: Month | B2: Total Nominal | C2: Base Nominal | D2: Base Real | E2: Total Real | F2: CPI | H2: 2016 | I2: 1124200 | J2: KWH | L2: FPL RC-16 | O2: 1124200 | P2: KWH
A3: 2006-01-01 | B3: =R15 -> 109006.58 | C3: =R5+R6+R7 -> 28133.17 | D3: =C3 -> 28133.17 | E3: =B3 -> 109006.58 | F3: 198.3 | I3: 2800 | J3: KW | O3: 2800 | P3: KW
A4: 2016-01-01 | B4: =L15 -> 84438.58 | C4: =L5+L6+L7 -> 40543.83 | D4: =ROUND((($F4/$F$3)*$C$3),2) -> 34148.53 | E4: =ROUND((($F4/$F$3)*$B$3),2) -> 132314.09 | F4: 240.7
I5: Customer Charge | J5: 210.99 | L5: =J5 -> 210.99 | O5: Customer Charge | P5: 155.68 | R5: =P5 -> 155.68
I6: Non-fuel Energy | J6: 1.239 | K6: ¢/kWh | L6: =ROUND(I2*(J6/100),2) -> 13928.84 | O6: Non-fuel Energy | P6: 1.064 | Q6: ¢/kWh | R6: =ROUND(O2*(P6/100),2) -> 11961.49
G7: =C4/C3 -> 1.441139765 | I7: Demand Charge | J7: 9.43 | K7: $/kW | L7: =ROUND((J7*(I3)),2) -> 26404 | O7: Demand Charge | P7: 5.72 | Q7: $/kW | R7: =ROUND((P7*(O3)),2) -> 16016
G8: =(B3-B4)/B3 -> 0.2253808899 | I8: ECCR | J8: 0.7 | K8: $/kW | L8: =ROUND(I3*(J8),2) -> 1960 | O8: ECCR | P8: 0.117 | Q8: ¢/kWh | R8: =ROUND(O2*(P8)/100,2) -> 1315.31
E9: Nominal | F9: Real | I9: ECRC | J9: 0.205 | K9: ¢/kWh | L9: =ROUND(I2*(J9/100),2) -> 2304.61 | O9: ECRC | P9: 0.023 | Q9: ¢/kWh | R9: =ROUND(O2*(P9/100),2) -> 258.57
C10: Total Bill | D10: 2006-01-01 | E10: =B3 -> 109006.58 | F10: =E4-E3 -> 23307.51 | I10: CPRC | J10: 1.7 | K10: $/kW | L10: =ROUND((J10*(I3)),2) -> 4760 | O10: CPRC | P10: 2.19 | Q10: $/kW | R10: =ROUND((P10*(O3)),2) -> 6132
D11: 2016-01-01 | E11: =B4 -> 84438.58 | I11: Fuel | J11: 2.877 | K11: ¢/kWh | L11: =ROUND(I2*(J11/100),2) -> 32343.23 | O11: Fuel | P11: 6.144 | Q11: ¢/kWh | R11: =ROUND(O2*(P11/100),2) -> 69070.85
I12: Storm Surcharge | J12: 0.037 | K12: ¢/kWh | L12: =ROUND(I2*(J12/100),2) -> 415.95 | O12: Storm Surcharge | P12: 0.122 | Q12: ¢/kWh | R12: =ROUND(O2*(P12/100),2) -> 1371.52
I13: Subtotal | L13: =SUM(L5:L12) -> 82327.62 | O13: Subtotal | R13: =SUM(R5:R12) -> 106281.42
I14: Gross Tax Receipts | J14: 2.5641 | K14: % | L14: =ROUND(L13*(J14/100),2) -> 2110.96 | O14: Gross Tax Receipts | P14: 2.5641 | Q14: % | R14: =ROUND(R13*(P14/100),2) -> 2725.16
I15: Total | L15: =SUM(L13:L14) -> 84438.58 | O15: Total | R15: =SUM(R13:R14) -> 109006.58
